[Event "Titled Tuesday Blitz February 14 Late 2023"]
[White "Djordjevic, Dejan N"]
[Black "Poeta, Caio Medeiros"]
[WhiteFideId "913316"]
[BlackFideId "2142660"]
[WhiteElo "2167"]
[BlackElo "2088"]
[Result "0-1"]
[Round "11"]
[TimeControl "180+2"]
[Date "2023.02.14"]
[WhiteClock "0:00:02"]
[BlackClock "0:00:09"]

1. e4 {[%clk 0:02:54]}  c6 {[%clk 0:02:59]} 2. d4 {[%clk 0:02:54]}  d5 {[%clk 0:02:58]} 3. Nd2 {[%clk 0:02:54]}  dxe4 {[%clk 0:02:58]} 4. Nxe4 {[%clk 0:02:54]}  Bf5 {[%clk 0:02:59]} 5. Ng5 {[%clk 0:02:54]}  h6 {[%clk 0:02:57]} 6. N5f3 {[%clk 0:02:54]}  Nf6 {[%clk 0:02:56]} 7. Bc4 {[%clk 0:02:55]}  e6 {[%clk 0:02:56]} 8. Ne2 {[%clk 0:02:54]}  Bd6 {[%clk 0:02:54]} 9. Ng3 {[%clk 0:02:54]}  Bg6 {[%clk 0:02:54]} 10. O-O {[%clk 0:02:54]}  O-O {[%clk 0:02:53]} 11. Re1 {[%clk 0:02:54]}  Nbd7 {[%clk 0:02:52]} 12. a4 {[%clk 0:02:53]}  Qc7 {[%clk 0:02:52]} 13. c3 {[%clk 0:02:52]}  c5 {[%clk 0:02:51]} 14. Qb3 {[%clk 0:02:41]}  Rfe8 {[%clk 0:02:39]} 15. Be3 {[%clk 0:02:33]}  cxd4 {[%clk 0:02:38]} 16. Nxd4 {[%clk 0:02:29]}  a6 {[%clk 0:02:27]} 17. Rad1 {[%clk 0:02:24]}  Nc5 {[%clk 0:02:15]} 18. Qa2 {[%clk 0:02:23]}  Rac8 {[%clk 0:02:12]} 19. Be2 {[%clk 0:02:12]}  Bf4 {[%clk 0:02:03]} 20. Bf1 {[%clk 0:02:01]}  Bxe3 {[%clk 0:02:02]} 21. Rxe3 {[%clk 0:02:00]}  Nd5 {[%clk 0:01:57]} 22. Ree1 {[%clk 0:01:52]}  Nf4 {[%clk 0:01:53]} 23. Re3 {[%clk 0:01:36]}  Red8 {[%clk 0:01:42]} 24. Rde1 {[%clk 0:01:35]}  Ncd3 {[%clk 0:01:32]} 25. Bxd3 {[%clk 0:01:22]}  Nxd3 {[%clk 0:01:31]} 26. Rf1 {[%clk 0:01:17]}  Nf4 {[%clk 0:01:23]} 27. Rfe1 {[%clk 0:01:16]}  Nd5 {[%clk 0:01:17]} 28. Re5 {[%clk 0:01:14]}  Nf4 {[%clk 0:01:12]} 29. R5e3 {[%clk 0:01:12]}  b6 {[%clk 0:01:09]} 30. Qb3 {[%clk 0:01:05]}  Nd3 {[%clk 0:01:06]} 31. Rf1 {[%clk 0:00:59]}  Nc5 {[%clk 0:01:06]} 32. Qa2 {[%clk 0:00:58]}  Qd7 {[%clk 0:01:06]} 33. a5 {[%clk 0:00:54]}  b5 {[%clk 0:01:03]} 34. Nf3 {[%clk 0:00:41]}  Qc7 {[%clk 0:00:55]} 35. Ne5 {[%clk 0:00:40]}  Bh7 {[%clk 0:00:45]} 36. Ne2 {[%clk 0:00:33]}  Nb7 {[%clk 0:00:43]} 37. b4 {[%clk 0:00:31]}  Nd6 {[%clk 0:00:43]} 38. Nd4 {[%clk 0:00:30]}  Nc4 {[%clk 0:00:39]} 39. Nxc4 {[%clk 0:00:25]}  Qxc4 {[%clk 0:00:40]} 40. Qa1 {[%clk 0:00:16]}  Bd3 {[%clk 0:00:33]} 41. Rd1 {[%clk 0:00:13]}  Bg6 {[%clk 0:00:31]} 42. h3 {[%clk 0:00:11]}  Rd5 {[%clk 0:00:27]} 43. Rde1 {[%clk 0:00:11]}  Qc7 {[%clk 0:00:21]} 44. Qb2 {[%clk 0:00:08]}  Qf4 {[%clk 0:00:20]} 45. Qe2 {[%clk 0:00:07]}  Qc7 {[%clk 0:00:19]} 46. Qf3 {[%clk 0:00:07]}  Rdd8 {[%clk 0:00:16]} 47. Qg4 {[%clk 0:00:06]}  Qc4 {[%clk 0:00:14]} 48. h4 {[%clk 0:00:06]}  h5 {[%clk 0:00:13]} 49. Qg5 {[%clk 0:00:06]}  Rd5 {[%clk 0:00:12]} 50. Qf4 {[%clk 0:00:06]}  e5 {[%clk 0:00:09]} 51. Rxe5 {[%clk 0:00:05]}  Rxe5 {[%clk 0:00:08]} 52. Rxe5 {[%clk 0:00:04]}  Qxc3 {[%clk 0:00:08]} 53. Nf3 {[%clk 0:00:04]}  Qc1+ {[%clk 0:00:07]} 54. Qxc1 {[%clk 0:00:03]}  Rxc1+ {[%clk 0:00:08]} 55. Kh2 {[%clk 0:00:03]}  Rc4 {[%clk 0:00:09]} 56. Re8+ {[%clk 0:00:03]}  Kh7 {[%clk 0:00:09]} 57. Ng5+ {[%clk 0:00:03]}  Kh6 {[%clk 0:00:09]} 58. Rh8+ {[%clk 0:00:04]}  Bh7 {[%clk 0:00:10]} 59. Rxh7+ {[%clk 0:00:04]}  Kg6 {[%clk 0:00:10]} 60. Rh8 {[%clk 0:00:03]}  Rxb4 {[%clk 0:00:11]} 61. g3 {[%clk 0:00:03]}  Ra4 {[%clk 0:00:11]} 62. Rf8 {[%clk 0:00:03]}  f6 {[%clk 0:00:10]} 63. Ne6 {[%clk 0:00:02]}  Rxa5 {[%clk 0:00:10]} 64. Nf4+ {[%clk 0:00:02]}  Kf5 {[%clk 0:00:09]} 65. Nxh5 {[%clk 0:00:02]}  Ra2 {[%clk 0:00:09]} 66. Kg2 {[%clk 0:00:01]}  b4 {[%clk 0:00:09]} 67. Nxg7+ {[%clk 0:00:02]}  Kg6 {[%clk 0:00:09]} 0-1


[Site "https://www.chess.com"]

[Event "Titled Tuesday Blitz February 14 Late 2023"]
[White "Sabar, Ethmane Daouda"]
[Black "Kielinkei"]
[WhiteFideId "19600097"]
[WhiteElo "2040"]
[BlackElo "2399"]
[Result "0-1"]
[Round "11"]
[TimeControl "180+2"]
[Date "2023.02.14"]
[WhiteClock "0:00:16"]
[BlackClock "0:00:29"]

1. e4 {[%clk 0:03:00]}  c5 {[%clk 0:02:59]} 2. a3 {[%clk 0:03:00]}  e6 {[%clk 0:02:52]} 3. b4 {[%clk 0:03:00]}  b6 {[%clk 0:02:53]} 4. bxc5 {[%clk 0:02:54]}  bxc5 {[%clk 0:02:51]} 5. Bb2 {[%clk 0:02:55]}  Bb7 {[%clk 0:02:48]} 6. d3 {[%clk 0:02:53]}  d5 {[%clk 0:02:44]} 7. exd5 {[%clk 0:02:53]}  exd5 {[%clk 0:02:45]} 8. Nf3 {[%clk 0:02:54]}  Nf6 {[%clk 0:02:44]} 9. Be2 {[%clk 0:02:53]}  Be7 {[%clk 0:02:44]} 10. O-O {[%clk 0:02:54]}  O-O {[%clk 0:02:45]} 11. Nbd2 {[%clk 0:02:43]}  d4 {[%clk 0:02:42]} 12. Nc4 {[%clk 0:02:40]}  Nbd7 {[%clk 0:02:33]} 13. Rb1 {[%clk 0:02:39]}  Nb6 {[%clk 0:02:31]} 14. Nfe5 {[%clk 0:02:28]}  Nfd5 {[%clk 0:01:59]} 15. Bf3 {[%clk 0:02:26]}  Bf6 {[%clk 0:01:56]} 16. Ng4 {[%clk 0:02:18]}  Bg5 {[%clk 0:01:47]} 17. Nge5 {[%clk 0:02:07]}  Qc7 {[%clk 0:01:44]} 18. Nxb6 {[%clk 0:02:04]}  axb6 {[%clk 0:01:42]} 19. Re1 {[%clk 0:01:53]}  Rfe8 {[%clk 0:01:41]} 20. Nc4 {[%clk 0:01:51]}  b5 {[%clk 0:01:34]} 21. Nd2 {[%clk 0:01:36]}  Qd7 {[%clk 0:01:15]} 22. Rxe8+ {[%clk 0:01:31]}  Rxe8 {[%clk 0:01:14]} 23. Ne4 {[%clk 0:01:31]}  Be7 {[%clk 0:01:15]} 24. c4 {[%clk 0:01:28]}  dxc3 {[%clk 0:01:00]} 25. Nxc3 {[%clk 0:01:27]}  b4 {[%clk 0:00:45]} 26. axb4 {[%clk 0:01:22]}  cxb4 {[%clk 0:00:41]} 27. Nxd5 {[%clk 0:01:09]}  Bxd5 {[%clk 0:00:42]} 28. Bxd5 {[%clk 0:00:47]}  Qxd5 {[%clk 0:00:43]} 29. Qe2 {[%clk 0:00:43]}  Qe6 {[%clk 0:00:33]} 30. Qxe6 {[%clk 0:00:31]}  fxe6 {[%clk 0:00:33]} 31. Kf1 {[%clk 0:00:31]}  Kf7 {[%clk 0:00:31]} 32. Ke2 {[%clk 0:00:31]}  Rc8 {[%clk 0:00:29]} 33. Rc1 {[%clk 0:00:30]}  Rxc1 {[%clk 0:00:26]} 34. Bxc1 {[%clk 0:00:31]}  Bf6 {[%clk 0:00:26]} 35. d4 {[%clk 0:00:16]}  Bxd4 {[%clk 0:00:26]} 36. Kd3 {[%clk 0:00:16]}  Bxf2 {[%clk 0:00:24]} 37. Kc4 {[%clk 0:00:15]}  Be1 {[%clk 0:00:24]} 38. Be3 {[%clk 0:00:13]}  Kf6 {[%clk 0:00:23]} 39. Bc5 {[%clk 0:00:12]}  Kf5 {[%clk 0:00:22]} 40. g3 {[%clk 0:00:11]}  Ke4 {[%clk 0:00:19]} 41. Bd4 {[%clk 0:00:10]}  e5 {[%clk 0:00:19]} 42. Bb2 {[%clk 0:00:10]}  Bc3 {[%clk 0:00:18]} 43. Bxc3 {[%clk 0:00:10]}  bxc3 {[%clk 0:00:18]} 44. Kxc3 {[%clk 0:00:11]}  Kf3 {[%clk 0:00:19]} 45. Kd2 {[%clk 0:00:09]}  e4 {[%clk 0:00:19]} 46. Ke1 {[%clk 0:00:09]}  Kg2 {[%clk 0:00:18]} 47. Ke2 {[%clk 0:00:08]}  Kxh2 {[%clk 0:00:19]} 48. g4 {[%clk 0:00:09]}  Kg3 {[%clk 0:00:19]} 49. g5 {[%clk 0:00:10]}  Kg4 {[%clk 0:00:20]} 50. Ke3 {[%clk 0:00:10]}  Kxg5 {[%clk 0:00:20]} 51. Kxe4 {[%clk 0:00:11]}  Kg4 {[%clk 0:00:21]} 52. Ke3 {[%clk 0:00:11]}  Kg3 {[%clk 0:00:21]} 53. Ke2 {[%clk 0:00:12]}  Kg2 {[%clk 0:00:22]} 54. Ke3 {[%clk 0:00:12]}  h5 {[%clk 0:00:23]} 55. Kf4 {[%clk 0:00:13]}  h4 {[%clk 0:00:23]} 56. Kg5 {[%clk 0:00:13]}  h3 {[%clk 0:00:24]} 57. Kg6 {[%clk 0:00:13]}  h2 {[%clk 0:00:25]} 58. Kxg7 {[%clk 0:00:14]}  h1=Q {[%clk 0:00:26]} 59. Kf7 {[%clk 0:00:14]}  Kf3 {[%clk 0:00:27]} 60. Kf6 {[%clk 0:00:15]}  Ke4 {[%clk 0:00:28]} 61. Ke6 {[%clk 0:00:15]}  Qh6+ {[%clk 0:00:28]} 62. Kd7 {[%clk 0:00:16]}  Kd5 {[%clk 0:00:29]} 0-1


[Site "https://www.chess.com"]

[Event "Titled Tuesday Blitz February 14 Late 2023"]
[White "Gerbelli Neto, Eduardo"]
[Black "ritanovikova"]
[WhiteFideId "2103281"]
[WhiteElo "2114"]
[BlackElo "2189"]
[Result "1-0"]
[Round "11"]
[TimeControl "180+2"]
[Date "2023.02.14"]
[WhiteClock "0:00:10"]
[BlackClock "0:00:02"]

1. e4 {[%clk 0:03:00]}  d5 {[%clk 0:02:59]} 2. exd5 {[%clk 0:03:00]}  Qxd5 {[%clk 0:03:00]} 3. Nc3 {[%clk 0:03:00]}  Qd6 {[%clk 0:03:00]} 4. Bc4 {[%clk 0:02:59]}  Nf6 {[%clk 0:03:01]} 5. d3 {[%clk 0:02:59]}  a6 {[%clk 0:02:59]} 6. Bb3 {[%clk 0:02:49]}  Be6 {[%clk 0:02:58]} 7. Bxe6 {[%clk 0:02:43]}  Qxe6+ {[%clk 0:02:58]} 8. Nge2 {[%clk 0:02:44]}  Nc6 {[%clk 0:02:58]} 9. O-O {[%clk 0:02:43]}  O-O-O {[%clk 0:02:56]} 10. Bf4 {[%clk 0:02:36]}  h6 {[%clk 0:02:55]} 11. Re1 {[%clk 0:02:31]}  g5 {[%clk 0:02:51]} 12. Ng3 {[%clk 0:02:28]}  Qd7 {[%clk 0:02:50]} 13. Bd2 {[%clk 0:02:22]}  Bg7 {[%clk 0:02:45]} 14. Rb1 {[%clk 0:02:16]}  e6 {[%clk 0:02:41]} 15. b4 {[%clk 0:02:16]}  Nd4 {[%clk 0:02:40]} 16. a4 {[%clk 0:02:11]}  g4 {[%clk 0:02:34]} 17. b5 {[%clk 0:02:10]}  a5 {[%clk 0:02:34]} 18. Nge4 {[%clk 0:02:06]}  Nxe4 {[%clk 0:02:31]} 19. Nxe4 {[%clk 0:02:04]}  b6 {[%clk 0:02:21]} 20. c3 {[%clk 0:01:53]}  Nf5 {[%clk 0:02:17]} 21. d4 {[%clk 0:01:54]}  h5 {[%clk 0:02:14]} 22. Bg5 {[%clk 0:01:41]}  Rdf8 {[%clk 0:02:11]} 23. Bf6 {[%clk 0:01:28]}  Rfg8 {[%clk 0:02:03]} 24. Be5 {[%clk 0:01:05]}  Bxe5 {[%clk 0:01:57]} 25. dxe5 {[%clk 0:01:06]}  Qxd1 {[%clk 0:01:53]} 26. Rbxd1 {[%clk 0:01:07]}  Rd8 {[%clk 0:01:50]} 27. Nf6 {[%clk 0:01:07]}  Rxd1 {[%clk 0:01:18]} 28. Rxd1 {[%clk 0:01:07]}  Nh6 {[%clk 0:00:58]} 29. Nxh5 {[%clk 0:00:58]}  Ng8 {[%clk 0:00:46]} 30. Nf4 {[%clk 0:00:56]}  Ne7 {[%clk 0:00:44]} 31. c4 {[%clk 0:00:35]}  Rg8 {[%clk 0:00:43]} 32. Nd3 {[%clk 0:00:24]}  Nf5 {[%clk 0:00:39]} 33. c5 {[%clk 0:00:24]}  Nd4 {[%clk 0:00:31]} 34. cxb6 {[%clk 0:00:22]}  cxb6 {[%clk 0:00:30]} 35. Kf1 {[%clk 0:00:20]}  Kb7 {[%clk 0:00:27]} 36. Nf4 {[%clk 0:00:20]}  Nb3 {[%clk 0:00:10]} 37. Rd7+ {[%clk 0:00:20]}  Kc8 {[%clk 0:00:10]} 38. Rxf7 {[%clk 0:00:20]}  Nc5 {[%clk 0:00:11]} 39. h4 {[%clk 0:00:18]}  gxh3 {[%clk 0:00:10]} 40. gxh3 {[%clk 0:00:19]}  Nd7 {[%clk 0:00:07]} 41. Nxe6 {[%clk 0:00:17]}  Nxe5 {[%clk 0:00:07]} 42. Ra7 {[%clk 0:00:17]}  Kb8 {[%clk 0:00:06]} 43. Re7 {[%clk 0:00:16]}  Nc4 {[%clk 0:00:03]} 44. Rg7 {[%clk 0:00:11]}  Re8 {[%clk 0:00:02]} 45. Rg6 {[%clk 0:00:10]}  Nb2 {[%clk 0:00:02]} 46. h4 {[%clk 0:00:10]}  Nxa4 {[%clk 0:00:02]} 47. h5 {[%clk 0:00:10]}  Nc3 {[%clk 0:00:02]} 48. h6 {[%clk 0:00:11]}  Nxb5 {[%clk 0:00:02]} 49. h7 {[%clk 0:00:10]} 1-0


[Site "https://www.chess.com"]

[Event "Titled Tuesday Blitz February 14 Late 2023"]
[White "Rose, Felix"]
[Black "Sailer, Mike"]
[WhiteFideId "5105722"]
[BlackFideId "2012901"]
[WhiteElo "2091"]
[BlackElo "2109"]
[Result "1-0"]
[Round "11"]
[TimeControl "180+2"]
[Date "2023.02.14"]
[WhiteClock "0:00:20"]
[BlackClock "0:00:02"]

1. d4 {[%clk 0:02:59]}  g6 {[%clk 0:02:52]} 2. e4 {[%clk 0:02:58]}  Bg7 {[%clk 0:02:42]} 3. Nf3 {[%clk 0:02:58]}  c6 {[%clk 0:02:40]} 4. h3 {[%clk 0:02:57]}  d5 {[%clk 0:02:40]} 5. e5 {[%clk 0:02:57]}  Bf5 {[%clk 0:02:29]} 6. Be2 {[%clk 0:02:55]}  Nh6 {[%clk 0:02:20]} 7. Bf4 {[%clk 0:02:45]}  Be4 {[%clk 0:02:19]} 8. Qd2 {[%clk 0:02:39]}  Bxf3 {[%clk 0:02:17]} 9. Bxf3 {[%clk 0:02:37]}  Nf5 {[%clk 0:02:18]} 10. g4 {[%clk 0:02:35]}  Nh4 {[%clk 0:02:11]} 11. Ke2 {[%clk 0:02:31]}  Nxf3 {[%clk 0:02:09]} 12. Kxf3 {[%clk 0:02:32]}  e6 {[%clk 0:02:08]} 13. h4 {[%clk 0:02:24]}  c5 {[%clk 0:01:58]} 14. c3 {[%clk 0:02:23]}  cxd4 {[%clk 0:01:57]} 15. cxd4 {[%clk 0:02:23]}  Nc6 {[%clk 0:01:58]} 16. Nc3 {[%clk 0:02:21]}  Qb6 {[%clk 0:01:50]} 17. Rad1 {[%clk 0:02:18]}  O-O-O {[%clk 0:01:31]} 18. Kg3 {[%clk 0:02:16]}  Kb8 {[%clk 0:01:14]} 19. a4 {[%clk 0:02:14]}  Qb3 {[%clk 0:01:07]} 20. h5 {[%clk 0:02:08]}  Ka8 {[%clk 0:01:00]} 21. f3 {[%clk 0:01:38]}  gxh5 {[%clk 0:00:51]} 22. Rxh5 {[%clk 0:01:37]}  f6 {[%clk 0:00:46]} 23. exf6 {[%clk 0:01:23]}  Bxf6 {[%clk 0:00:45]} 24. Nb5 {[%clk 0:01:21]}  Rd7 {[%clk 0:00:31]} 25. Nc7+ {[%clk 0:01:11]}  Rxc7 {[%clk 0:00:31]} 26. Bxc7 {[%clk 0:01:12]}  Nxd4 {[%clk 0:00:26]} 27. Qd3 {[%clk 0:00:59]}  Qxb2 {[%clk 0:00:21]} 28. g5 {[%clk 0:00:48]}  Rg8 {[%clk 0:00:15]} 29. Qxh7 {[%clk 0:00:43]}  Nf5+ {[%clk 0:00:11]} 30. Kh3 {[%clk 0:00:35]}  Rc8 {[%clk 0:00:09]} 31. Qd7 {[%clk 0:00:31]}  Rg8 {[%clk 0:00:07]} 32. Qxe6 {[%clk 0:00:24]}  Rf8 {[%clk 0:00:02]} 33. Qxf6 {[%clk 0:00:20]} 1-0


[Site "https://www.chess.com"]